bitfinex-derivatives/quotes_SOLF0:USTF0_20250528
["timestamp","ask_amount","ask_price","bid_price","bid_amount"]
[1748445537043,0.03177329,169.59,169.55,0.03777197]
[1748445537953,0.03177329,169.59,169.56,5.8953]
[1748445538654,0.03177329,169.59,169.55,0.03777197]
[1748445539350,0.03177329,169.59,169.58,5.8949]
[1748445540350,0.03177329,169.59,169.57,5.895]
[1748445540550,0.03177329,169.59,169.55,0.03777197]
[1748445541449,0.03177329,169.59,169.58,5.8949]
[1748445541654,33.3,169.63,169.56,35.3241]
[1748445541855,5.8925,169.65,169.61,5.8935]
[1748445542154,33.3,169.67,169.56,35.3241]
[1748445542752,33.3,169.67,169.6,0.04277384]
[1748445543555,5.8938,169.61,169.6,0.04277384]
[1748445543758,39.1938,169.61,169.6,0.04277384]
[1748445544547,33.3,169.61,169.6,0.04277384]
[1748445545358,39.1938,169.61,169.6,0.04277384]
[1748445545958,33.3,169.61,169.6,0.04277384]
[1748445546859,39.1938,169.61,169.6,0.04277384]
[1748445548363,33.3,169.61,169.51,35.3241]
[1748445548561,33.3,169.61,169.47,37.386]
[1748445548861,3.8645,169.6,169.47,4.146]
[1748445549055,3.8645,169.6,169.47,10.0446]
[1748445549357,0.03859741,169.55,169.52,0.04413539]
[1748445549753,0.03859741,169.55,169.52,5.94103539]
[1748445549957,0.03859741,169.55,169.52,0.04413539]
[1748445550156,0.03859741,169.55,169.54,5.8962]
[1748445550654,33.24,169.59,169.52,0.04413539]
[1748445550852,33.24,169.63,169.58,5.8948]
[1748445551054,33.24,169.63,169.53,33.24]
[1748445551250,33.24,169.63,169.6,5.8941]
[1748445551658,33.24,169.63,169.6,0.04201544]
[1748445551862,33.24,169.67,169.6,0.04201544]
[1748445552161,5.8925,169.65,169.62,0.03964402]
[1748445552364,33.24,169.67,169.62,0.03964402]
[1748445552557,5.8921,169.66,169.62,0.03964402]
[1748445555164,33.24,169.67,169.62,0.03964402]
[1748445555561,39.1318,169.67,169.62,0.03964402]
[1748445555761,33.24,169.67,169.62,0.03964402]
[1748445556059,5.8925,169.65,169.62,0.03964402]
[1748445556254,33.24,169.67,169.62,0.03964402]
[1748445556666,39.1318,169.67,169.62,0.03964402]
[1748445556963,33.24,169.67,169.62,0.03964402]
[1748445557164,5.8921,169.66,169.62,0.03964402]
[1748445559058,33.24,169.67,169.62,0.03964402]
[1748445559458,33.24,169.67,169.63,5.8931]
[1748445559666,39.1106,169.71,169.62,0.03964402]
[1748445559973,39.1106,169.71,169.66,5.892]
[1748445559974,33.22,169.71,169.66,5.892]
[1748445560158,33.22,169.71,169.67,0.03940865]
[1748445560663,39.1107,169.71,169.67,0.03940865]
[1748445560866,33.22,169.71,169.67,0.03940865]
[1748445563966,5.8913,169.69,169.67,0.03940865]
[1748445564164,33.22,169.71,169.67,0.03940865]
[1748445564864,33.22,169.71,169.67,5.93090865]
[1748445565166,20.66891582,169.78,169.67,0.03940865]
[1748445565358,5.8896,169.74,169.71,0.03818464]
[1748445565558,33.22,169.75,169.71,0.03818464]
[1748445565759,509.28,169.8,169.71,0.03818464]
[1748445565958,542.5,169.8,169.71,0.03818464]
[1748445566364,5.8888,169.76,169.71,0.03818464]
[1748445567068,5.8891,169.75,169.71,0.03818464]
[1748445567871,5.8894,169.74,169.71,0.03818464]
[1748445568068,542.5,169.8,169.71,0.03818464]
[1748445568268,5.8899,169.73,169.71,0.03818464]
[1748445569673,33.22,169.75,169.71,0.03818464]
[1748445571172,33.22,169.79,169.71,0.03818464]
[1748445571474,33.22,169.79,169.71,5.92818464]
[1748445571870,5.8885,169.77,169.71,5.92818464]
[1748445572268,33.22,169.79,169.71,0.03818464]
[1748445573372,5.8879,169.78,169.73,5.8894]
[1748445573568,5.8879,169.78,169.71,0.03818464]
[1748445573772,33.22,169.79,169.71,0.03818464]
[1748445574076,5.8883,169.77,169.72,5.8897]
[1748445574277,33.22,169.79,169.71,0.03818464]
[1748445574467,5.8881,169.78,169.73,5.8896]
[1748445574672,33.22,169.79,169.71,0.03818464]
[1748445576070,5.8881,169.78,169.73,5.8894]
[1748445576277,33.2,169.82,169.74,0.04122215]
[1748445577282,5.889,169.75,169.74,0.04122215]
[1748445578181,33.2,169.76,169.68,5.8913]
[1748445578582,5.8895,169.74,169.68,5.8913]
[1748445578984,0.04003211,169.73,169.69,5.93054889]
[1748445579181,5.92983211,169.73,169.69,0.03954889]
[1748445579582,0.04003211,169.73,169.69,0.03954889]
[1748445580084,0.04003211,169.73,169.71,5.8903]
[1748445580282,0.04003211,169.73,169.69,0.03954889]
[1748445580582,33.16,169.8,169.7,33.16]
[1748445580777,33.16,169.8,169.71,3.9969]
[1748445581181,33.16,169.8,169.73,5.8896]
[1748445581580,33.16,169.8,169.75,0.04153496]
[1748445582181,5.8878,169.79,169.75,0.04153496]
[1748445582779,33.16,169.8,169.75,0.04153496]
[1748445583381,5.8882,169.78,169.75,0.04153496]
[1748445584784,5.8877,169.79,169.75,0.04153496]
[1748445585983,39.0474,169.8,169.75,0.04153496]
[1748445586176,33.16,169.8,169.76,5.8884]
[1748445586487,33.16,169.8,169.75,0.04153496]
[1748445587391,33.16,169.8,169.67,2.0362]
[1748445587688,5.8892,169.75,169.69,5.8909]
[1748445587891,39.0492,169.75,169.69,5.8909]
[1748445588084,39.0492,169.75,169.67,2.0362]
[1748445588283,0.04461828,169.73,169.7,5.8905]
[1748445588478,0.04461828,169.73,169.69,0.03968888]
[1748445588886,0.04461828,169.73,169.7,5.8905]
[1748445589381,0.04461828,169.73,169.69,0.03968888]
[1748445590591,0.04461828,169.73,169.71,5.8903]
[1748445590984,0.04461828,169.73,169.69,0.03968888]
[1748445591287,0.04461828,169.73,169.7,5.8904]
[1748445593191,0.04461828,169.73,169.71,5.8903]
[1748445593985,0.04461828,169.73,169.7,5.8905]
[1748445594390,0.04461828,169.73,169.69,0.03968888]
[1748445594787,0.04461828,169.73,169.71,5.8901]
[1748445594992,0.04461828,169.73,169.69,0.03968888]
[1748445595496,5.93431828,169.73,169.69,0.03968888]
[1748445596087,0.04461828,169.73,169.69,0.03968888]
[1748445596585,5.8907,169.7,169.69,0.03968888]
[1748445596987,33.16,169.71,169.62,6.1686]
[1748445597191,5.8914,169.68,169.63,5.8929]
[1748445597592,39.0504,169.71,169.62,6.1686]
[1748445597792,29.414,169.93,169.62,6.1686]
[1748445597793,33.16,169.83,169.62,6.1686]
[1748445597987,0.04385015,169.74,169.71,0.03874467]
[1748445598184,0.0408501,169.74,169.71,0.03929854]
[1748445598592,5.9302501,169.74,169.71,0.03929854]
[1748445599090,0.0408501,169.74,169.71,0.03929854]
[1748445600489,0.0408501,169.74,169.73,5.8896]
[1748445601793,33.16,169.8,169.71,0.03929854]
[1748445601994,33.16,169.8,169.71,6.2085]
[1748445602392,33.16,169.8,169.79,5.8876]
[1748445602691,0.04485176,169.81,169.78,0.03982233]
[1748445602893,0.03721998,169.81,169.78,5.92612231]
[1748445603198,0.03721998,169.81,169.78,0.03842231]
[1748445603400,0.03721998,169.81,169.78,5.92622231]
[1748445603902,0.03721998,169.81,169.78,0.03842231]
[1748445604698,0.03721998,169.81,169.8,5.8872]
[1748445605004,0.03721998,169.81,169.78,0.03842231]
[1748445605394,0.03721998,169.81,169.78,5.92622231]
[1748445605595,0.03721998,169.81,169.78,0.03842231]
[1748445606497,0.03721998,169.81,169.8,5.8872]
[1748445607602,0.03721998,169.81,169.79,5.8874]
[1748445608205,0.03721998,169.81,169.79,5.8876]
[1748445608505,0.03721998,169.81,169.78,0.03842231]
[1748445609606,5.92431998,169.81,169.78,0.03842231]
[1748445609806,0.03721998,169.81,169.78,0.03842231]
[1748445610002,33.1,169.8,169.71,4.1261]
[1748445610208,33.1,169.8,169.71,5.8901]
[1748445610409,33.1,169.8,169.66,33.1]
[1748445610702,38.9873,169.8,169.66,33.1]
[1748445611107,0.03792086,169.75,169.71,0.03750866]
[1748445612308,5.92712086,169.75,169.71,0.03750866]
[1748445612604,0.03792086,169.75,169.71,0.03750866]
[1748445612806,5.8895,169.74,169.71,0.03750866]
[1748445613012,0.03792086,169.75,169.71,0.03750866]
[1748445613411,5.8899,169.73,169.71,0.03750866]
[1748445613801,0.03792086,169.75,169.71,0.03750866]
[1748445614409,5.89,169.73,169.71,0.03750866]
[1748445614610,0.03792086,169.75,169.71,0.03750866]
[1748445614810,0.03792086,169.75,169.62,33.1]
[1748445615009,5.8901,169.72,169.66,5.892]
[1748445615206,33.1,169.72,169.62,33.1]
[1748445615406,33.1,169.72,169.71,5.8903]
[1748445615606,2.0766,169.78,169.66,33.1]
[1748445615807,0.04101375,169.74,169.7,0.04097913]
[1748445617216,5.8899,169.73,169.7,0.04097913]
[1748445617515,33.1,169.73,169.7,0.04097913]
[1748445617715,33.1,169.73,169.7,5.93127913]
[1748445617908,33.1,169.73,169.7,0.04097913]
[1748445618110,0.04101375,169.74,169.7,0.04097913]
[1748445618416,0.04101375,169.74,169.7,5.93137913]
[1748445618617,0.04101375,169.74,169.7,0.04097913]
[1748445619810,0.04101375,169.74,169.7,33.14097913]
[1748445620006,0.04101375,169.74,169.7,0.04097913]
[1748445621318,33.1,169.73,169.7,0.04097913]
[1748445621514,5.8903,169.71,169.7,0.04097913]
[1748445622411,5.8901,169.72,169.7,0.04097913]
[1748445622612,33.1,169.73,169.7,0.04097913]
[1748445624113,38.9898,169.73,169.7,0.04097913]
[1748445624313,33.1,169.73,169.7,0.04097913]
[1748445627921,33.1,169.73,169.7,5.93167913]
[1748445629527,0.04101375,169.74,169.71,5.8903]
[1748445629723,0.04101375,169.74,169.7,0.04097913]
[1748445630121,0.04101375,169.74,169.73,5.8896]
[1748445630824,0.04101375,169.74,169.72,5.8899]
[1748445631124,0.04101375,169.74,169.7,33.14097913]
[1748445631429,0.04101375,169.74,169.73,5.8896]
[1748445632329,5.8874,169.8,169.75,5.8887]
[1748445633028,33.1,169.81,169.71,5.9632]
[1748445633333,0.03715218,169.78,169.74,0.03892855]
[1748445633525,0.03715218,169.78,169.77,5.8883]
[1748445634125,5.8862,169.84,169.8,5.8869]
[1748445634326,33.1,169.85,169.75,33.1]
[1748445634631,33.1,169.89,169.75,33.1]
[1748445634930,5.8854,169.86,169.75,33.1]
[1748445635130,33.1,169.89,169.75,33.1]
[1748445635331,0.0426168,169.82,169.79,0.0432862]
[1748445635524,33.1,169.9,169.79,33.14187707]
[1748445635720,0.0426168,169.86,169.83,0.03816486]
[1748445636223,33.1,169.94,169.84,33.1]
[1748445636622,5.8835,169.91,169.87,5.8848]
[1748445636830,33.1,169.94,169.84,33.1]
[1748445637331,33.1,169.94,169.88,5.8844]
[1748445637625,33.1,169.94,169.87,0.04345033]
[1748445637829,33.1,169.98,169.87,0.04345033]
[1748445638034,33.1,169.98,169.91,0.04428628]
[1748445639826,6.0016,170.01,169.91,0.04428628]
[1748445640333,6.0016,170.01,169.94,5.8821]
[1748445640525,6.0016,170.01,169.96,0.04370774]
[1748445641530,5.881,169.98,169.96,0.04370774]
[1748445642036,5.8813,169.97,169.96,0.04370774]
[1748445642537,6.0016,170.01,169.96,0.04370774]
[1748445642735,5.8813,169.97,169.96,0.04370774]
[1748445643230,5.8809,169.99,169.96,0.04370774]
[1748445645538,6.0016,170.01,169.96,0.04370774]
[1748445647339,5.8813,169.97,169.96,0.04370774]
[1748445647529,33.02,169.98,169.96,0.04370774]
[1748445648933,33.02,170.02,169.96,0.04370774]
[1748445649437,33.02,170.02,169.98,5.8807]
[1748445649638,33.02,170.02,169.96,0.04370774]
[1748445650639,5.8805,170.0,169.96,0.04370774]
[1748445650841,33.02,170.02,169.96,0.04370774]
[1748445651237,5.9854,170.07,169.96,0.04370774]
[1748445651443,33.02,170.06,170.0,0.04472714]
[1748445652344,5.8798,170.02,170.0,0.04472714]
[1748445652842,5.8793,170.03,170.0,0.04472714]
[1748445653040,33.02,170.06,170.0,0.04472714]
[1748445653343,5.8788,170.05,170.0,0.04472714]
[1748445653542,33.02,170.09,170.0,0.04472714]
[1748445653749,33.02,170.09,170.03,0.03790218]
[1748445654432,5.8789,170.05,170.03,0.03790218]
[1748445654940,5.8789,170.04,170.03,0.03790218]
[1748445659536,33.0,170.05,170.03,0.03790218]
[1748445660341,33.0,170.05,169.9,33.0]
[1748445660342,38.88,170.05,169.9,33.0]
[1748445660542,5.8807,169.99,169.93,5.8825]
[1748445660738,33.0,169.99,169.9,33.0]
[1748445661139,33.0,169.99,169.88,1.9913]
[1748445661345,33.0,169.99,169.86,35.0118]
[1748445661346,0.03790218,169.95,169.86,35.0118]
[1748445661542,0.03790218,169.95,169.86,2.0118]
[1748445662540,0.03790218,169.95,169.89,0.04132464]
[1748445663848,0.03790218,169.95,169.92,5.8828]
[1748445664045,0.03790218,169.95,169.89,0.04132464]
[1748445664645,0.03790218,169.95,169.9,33.0]
[1748445664847,0.03790218,169.95,169.94,5.8824]
[1748445666051,36.8488,170.04,169.93,0.03753432]
[1748445666250,36.8488,170.04,169.9,37.0728]
[1748445666445,5.88,170.01,169.95,5.8817]
[1748445666844,0.041776,170.0,169.96,0.04079389]
[1748445669748,0.041776,170.0,169.96,5.92239389]
[1748445669954,0.041776,170.0,169.96,0.04079389]
[1748445670252,5.922176,170.0,169.96,0.04079389]
[1748445670446,32.981776,170.0,169.96,0.04079389]
[1748445671756,32.981776,170.0,169.97,5.8813]
[1748445671949,32.981776,170.0,169.96,0.04079389]
[1748445672650,32.981776,170.0,169.96,5.92219389]
[1748445673350,32.981776,170.0,169.96,0.04079389]
[1748445674353,5.8809,169.99,169.96,0.04079389]
[1748445675155,38.862176,170.0,169.96,0.04079389]
[1748445675454,32.981776,170.0,169.96,0.04079389]
[1748445675651,32.981776,170.0,169.9,32.94]
[1748445676253,5.881,169.99,169.93,5.8825]
[1748445676558,5.881,169.99,169.94,0.04458997]
[1748445676959,32.981776,170.0,169.94,0.04458997]
[1748445678056,5.8812,169.98,169.94,0.04458997]
[1748445678862,32.981776,170.0,169.94,0.04458997]
[1748445681159,5.8812,169.98,169.94,0.04458997]
[1748445681363,32.981776,170.0,169.94,0.04458997]
[1748445682968,5.8812,169.98,169.94,0.04458997]
[1748445683353,32.981776,170.0,169.94,0.04458997]
[1748445683569,38.862276,170.0,169.94,5.92668997]
[1748445684258,5.8807,169.99,169.94,0.04458997]
[1748445684458,32.981776,170.0,169.94,0.04458997]
[1748445684857,5.8812,169.98,169.94,0.04458997]
[1748445685264,32.981776,170.0,169.94,0.04458997]
[1748445685469,5.8812,169.98,169.94,0.04458997]
[1748445685762,32.981776,170.0,169.94,0.04458997]
[1748445686268,5.8815,169.97,169.94,0.04458997]
[1748445687866,5.8817,169.96,169.94,0.04458997]
[1748445688067,32.981776,170.0,169.94,0.04458997]
[1748445688457,5.8817,169.96,169.94,0.04458997]
[1748445688970,5.8815,169.97,169.94,0.04458997]
[1748445689772,5.8817,169.96,169.94,0.04458997]
[1748445692968,5.8814,169.97,169.94,0.04458997]
[1748445693561,32.981776,170.0,169.94,0.04458997]
[1748445693562,5.8817,169.96,169.94,0.04458997]
[1748445695376,32.981776,170.0,169.94,0.04458997]
[1748445695766,5.8814,169.97,169.94,0.04458997]
[1748445696570,5.8817,169.96,169.94,0.04458997]
[1748445696772,32.981776,170.0,169.94,0.04458997]
[1748445697469,5.8815,169.97,169.94,0.04458997]
[1748445698569,5.8811,169.98,169.94,0.04458997]
[1748445698871,32.981776,170.0,169.94,0.04458997]
[1748445700868,5.8816,169.97,169.94,0.04458997]
[1748445702769,5.8817,169.96,169.94,0.04458997]
[1748445703168,32.981776,170.0,169.94,0.04458997]
[1748445703775,2.1022,169.99,169.94,0.04458997]
[1748445704071,32.981776,170.0,169.94,0.04458997]
[1748445704376,5.8812,169.98,169.94,0.04458997]
[1748445704673,32.981776,170.0,169.94,0.04458997]
[1748445706167,5.8818,169.96,169.94,0.04458997]
[1748445706471,32.981776,170.0,169.94,0.04458997]
[1748445706867,5.882,169.95,169.94,0.04458997]
[1748445707065,38.762,169.95,169.94,0.04458997]
[1748445708270,32.88,169.95,169.94,0.04458997]
[1748445708868,38.762,169.95,169.94,0.04458997]
[1748445727898,32.88,169.95,169.87,3.9617]
[1748445728795,32.88,169.95,169.74,14.59508148]
[1748445729090,2.0993,169.94,169.81,3.8844]
[1748445729295,5.8848,169.87,169.81,9.771]
[1748445729689,32.88,169.89,169.81,3.8844]
[1748445729890,5.8857,169.84,169.83,0.03734085]
[1748445730288,5.885,169.86,169.83,0.03734085]
[1748445730595,0.03730312,169.87,169.83,0.03734085]
[1748445731192,510.4793,169.94,169.83,0.03734085]
[1748445731193,32.82,169.93,169.83,0.03734085]
[1748445731492,5.883,169.92,169.86,5.8846]
[1748445731802,5.883,169.92,169.82,32.82]
[1748445732002,32.82,169.93,169.82,32.82]
[1748445732296,0.04355366,169.89,169.86,0.04434349]
[1748445732496,32.82,169.93,169.86,32.86434349]
[1748445732694,32.82,169.97,169.87,4.0602]
[1748445733095,5.8822,169.94,169.91,5.883]
[1748445733391,5.92623298,169.94,169.91,5.92735966]
[1748445733596,0.04403298,169.94,169.91,0.04435966]
[1748445733797,0.04403298,169.94,169.91,5.92725966]
[1748445735099,5.92643298,169.94,169.91,0.04435966]
[1748445735491,5.8825,169.93,169.91,0.04435966]
[1748445735998,0.04403298,169.94,169.91,5.92745966]
[1748445736599,0.04403298,169.94,169.91,0.04435966]
[1748445737096,5.8827,169.93,169.91,0.04435966]
[1748445737297,0.04403298,169.94,169.91,0.04435966]
[1748445739402,0.04403298,169.94,169.91,32.86435966]
[1748445739700,5.8805,169.99,169.95,5.8815]
[1748445739896,32.82,170.01,169.91,32.82]
[1748445740093,5.881,169.98,169.91,32.82]
[1748445740295,32.82,170.01,169.91,32.82]
[1748445740495,0.04032537,169.98,169.96,5.8813]
[1748445742301,0.04032537,169.98,169.94,0.04192591]
[1748445743006,0.04032537,169.98,169.96,5.8812]
[1748445743304,0.04032537,169.98,169.94,0.04192591]
[1748445743502,0.04032537,169.98,169.97,5.8811]
[1748445744900,5.8049,170.08,169.95,39.0101]
[1748445744901,38.6786,170.05,169.95,39.0101]
[1748445745093,32.8,170.05,169.95,39.0101]
[1748445745297,32.8,170.05,170.01,5.8795]
[1748445745499,5.8787,170.04,170.01,5.8795]
[1748445745699,5.8787,170.04,169.95,39.0101]
[1748445745902,5.8787,170.04,170.01,0.03942665]
[1748445746105,32.8,170.05,170.01,0.03942665]
[1748445746710,5.8794,170.02,170.01,0.03942665]
[1748445746896,32.8,170.05,169.95,36.9867]
[1748445747204,32.8,170.05,169.95,4.1867]
[1748445747503,5.8803,170.0,169.95,4.1867]
[1748445747893,0.03730234,169.99,169.96,0.03856429]
[1748445748408,5.91770234,169.99,169.96,0.03856429]
[1748445748908,0.03730234,169.99,169.96,0.03856429]
[1748445750604,5.91800234,169.99,169.96,0.03856429]
[1748445750804,0.03730234,169.99,169.96,0.03856429]
[1748445751802,5.91790234,169.99,169.96,0.03856429]
[1748445753307,0.03730234,169.99,169.96,0.03856429]
[1748445755110,0.03730234,169.99,169.96,5.91996429]
[1748445756104,0.03730234,169.99,169.97,5.881]
[1748445756613,0.03730234,169.99,169.96,0.03856429]
[1748445757104,5.91800234,169.99,169.96,0.03856429]
[1748445757505,0.03730234,169.99,169.96,0.03856429]
[1748445758313,5.8808,169.98,169.96,0.03856429]
[1748445758511,0.03730234,169.99,169.96,0.03856429]
[1748445758907,0.03730234,169.99,169.96,5.91966429]
[1748445759107,0.03730234,169.99,169.96,0.03856429]
[1748445760106,0.03730234,169.99,169.97,5.8809]
[1748445760507,0.03730234,169.99,169.96,0.03856429]
[1748445761311,0.03730234,169.99,169.96,5.91996429]
[1748445761514,0.03730234,169.99,169.96,0.03856429]
[1748445761915,0.03730234,169.99,169.96,5.91996429]
[1748445762116,0.03730234,169.99,169.96,0.03856429]
[1748445762515,0.03730234,169.99,169.97,5.8807]
[1748445763015,0.03730234,169.99,169.96,0.03856429]
[1748445763314,0.03730234,169.99,169.98,5.8807]
[1748445767918,0.03730234,169.99,169.97,11.7734]
[1748445768517,0.03730234,169.99,169.96,5.91976429]
[1748445769226,0.03730234,169.99,169.97,5.8809]
[1748445771121,0.03730234,169.99,169.98,5.8807]
[1748445776426,32.72,170.07,169.96,3.95146429]
[1748445776623,32.72,170.07,169.96,3.9129]
[1748445776822,32.72,170.07,170.01,5.8794]
[1748445777225,5.8783,170.05,170.01,5.8794]
[1748445777424,5.8783,170.05,170.02,0.03954181]
[1748445777630,32.72,170.07,170.02,0.03954181]
[1748445777930,5.8782,170.06,170.02,0.03954181]
[1748445778229,32.72,170.07,170.02,0.03954181]
[1748445778933,5.8788,170.04,170.02,0.03954181]
[1748445779229,32.72,170.07,170.02,0.03954181]
[1748445779627,5.8789,170.04,170.02,0.03954181]
[1748445780228,5.8789,170.03,170.02,0.03954181]
[1748445781833,5.8789,170.03,169.95,32.72]
[1748445781834,5.8803,170.0,169.95,32.72]
[1748445782424,5.8803,170.0,169.95,38.6015]
[1748445782830,0.04207449,169.99,169.96,0.03960587]
[1748445784821,0.04207449,169.99,169.96,5.92090587]
[1748445785726,0.04207449,169.99,169.96,0.03960587]
[1748445787433,0.04207449,169.99,169.97,5.8809]
[1748445788132,0.04207449,169.99,169.96,0.03960587]
[1748445788634,5.92237449,169.99,169.96,0.03960587]
[1748445789136,0.04207449,169.99,169.96,0.03960587]
[1748445789531,0.04207449,169.99,169.97,5.881]
[1748445789732,0.04207449,169.99,169.96,0.03960587]
[1748445791041,0.04207449,169.99,169.98,5.8807]
[1748445791241,0.04207449,169.99,169.96,0.03960587]
[1748445791635,0.04207449,169.99,169.96,5.92080587]
[1748445792137,0.04207449,169.99,169.96,0.03960587]
[1748445793042,0.04207449,169.99,169.96,5.92070587]
[1748445793944,508.26,170.1,169.96,0.03960587]
[1748445794243,508.26,170.1,169.97,1.9033]
[1748445794444,32.62,170.09,169.98,1.9464]
[1748445794642,5.8778,170.07,170.02,5.8792]
[1748445794943,32.62,170.09,170.03,0.0419372]
[1748445795143,5.8779,170.07,170.03,0.0419372]
[1748445795439,32.62,170.09,170.03,5.9208372]
[1748445795744,5.8775,170.08,170.03,5.9208372]
[1748445796246,5.8775,170.08,170.03,0.0419372]
[1748445796646,5.8775,170.08,170.03,5.9207372]
[1748445798455,5.8775,170.08,170.04,5.8785]
[1748445798957,5.8775,170.08,170.03,0.0419372]
[1748445799154,5.8775,170.08,170.03,5.9207372]
[1748445799453,5.8775,170.08,170.03,0.0419372]
[1748445799852,5.8775,170.08,170.03,5.9207372]
[1748445801049,5.8777,170.07,170.03,5.9207372]
[1748445802650,32.62,170.09,170.03,0.0419372]
[1748445804449,32.62,170.09,170.03,5.9208372]
[1748445804857,5.8779,170.07,170.03,0.0419372]
[1748445805052,32.62,170.09,170.03,0.0419372]
[1748445805452,5.8774,170.08,170.03,0.0419372]
[1748445805654,5.8774,170.08,170.03,5.9207372]
[1748445805957,5.8776,170.07,170.03,5.9207372]
[1748445806156,32.62,170.09,170.04,5.8785]
[1748445806553,5.8775,170.08,170.04,5.8785]
[1748445806860,5.8775,170.08,170.03,5.9207372]
[1748445807556,5.8775,170.08,170.04,5.8786]
[1748445807865,32.62,170.11,170.03,0.0419372]
[1748445808058,32.62,170.11,170.05,5.92167855]
[1748445808359,32.62,170.11,170.05,0.04357855]
[1748445809359,5.8774,170.08,170.05,0.04357855]
[1748445810060,32.62,170.11,170.05,0.04357855]
[1748445810566,5.8774,170.08,170.05,0.04357855]
[1748445811163,5.877,170.09,170.05,5.92177855]
[1748445811562,32.62,170.11,170.05,5.92177855]
[1748445811863,5.8771,170.09,170.05,5.92177855]
[1748445812362,5.8771,170.09,170.06,5.8779]
[1748445812666,5.8771,170.09,170.05,0.04357855]
[1748445813057,32.62,170.11,170.05,0.04357855]
[1748445813667,5.8774,170.08,170.05,5.92177855]
[1748445813865,32.62,170.11,170.05,0.04357855]
[1748445814167,5.8776,170.07,170.05,0.04357855]
[1748445815967,5.8774,170.08,170.05,0.04357855]
[1748445816168,5.8774,170.08,170.05,5.92177855]
[1748445816368,32.62,170.11,170.05,5.92177855]
[1748445817675,5.8772,170.09,170.05,5.92177855]
[1748445818272,5.8769,170.09,170.05,5.92167855]
[1748445819074,32.62,170.11,170.07,5.8776]
[1748445819773,32.62,170.11,170.06,5.8778]
[1748445819975,32.62,170.11,170.05,0.04357855]
[1748445820377,38.4965,170.11,170.05,0.04357855]
[1748445820676,32.62,170.11,170.05,0.04357855]
[1748445820871,5.8766,170.1,170.06,5.8776]
[1748445821071,32.62,170.11,170.05,0.04357855]
[1748445821376,38.4964,170.11,170.07,5.8774]
[1748445822478,32.62,170.11,170.05,0.04357855]
[1748445823277,5.8766,170.1,170.06,5.8777]
[1748445823670,5.8768,170.1,170.06,5.8777]
[1748445824477,5.8768,170.1,170.05,0.04357855]
[1748445824673,32.62,170.11,170.05,0.04357855]
[1748445826280,5.8771,170.09,170.05,0.04357855]
[1748445826879,32.62,170.11,170.05,0.04357855]
[1748445827186,32.62,170.11,170.05,5.92157855]
[1748445827882,5.8767,170.1,170.05,5.92157855]
[1748445828278,32.62,170.11,170.05,0.04357855]
[1748445828886,5.8771,170.09,170.05,0.04357855]
[1748445829086,32.62,170.11,170.05,0.04357855]
[1748445829387,5.8771,170.09,170.05,0.04357855]
[1748445829584,32.62,170.11,170.05,0.04357855]
[1748445831288,5.878,170.06,170.05,0.04357855]
[1748445834490,5.8777,170.07,170.05,0.04357855]
[1748445834791,32.62,170.11,170.05,0.04357855]
[1748445834987,5.878,170.06,170.05,0.04357855]
[1748445835690,5.8778,170.07,170.05,0.04357855]
[1748445836398,5.878,170.06,170.05,0.04357855]
[1748445837185,5.8777,170.07,170.05,0.04357855]
[1748445837691,5.8779,170.06,170.05,0.04357855]
[1748445841697,38.3977,170.07,170.05,0.04357855]
[1748445842397,32.52,170.07,170.05,0.04357855]
[1748445844606,38.3977,170.07,170.05,0.04357855]
[1748445847899,5.878,170.06,170.05,0.04357855]
[1748445849604,32.52,170.07,170.05,0.04357855]
[1748445851997,5.8776,170.08,170.05,0.04357855]
[1748445852408,32.52,170.09,170.05,0.04357855]
[1748445852702,5.8776,170.08,170.05,0.04357855]
[1748445853605,5.8777,170.07,170.05,0.04357855]
[1748445855800,32.52,170.09,170.05,0.04357855]
[1748445856007,5.8774,170.08,170.05,0.04357855]
[1748445856305,32.52,170.09,170.05,0.04357855]
[1748445857203,5.8775,170.08,170.05,0.04357855]